Cogmind - Beta 15 *** ADVENTURER MODE // 2025.06.12 @ 17:13:42 Player: Ronin_tempest Result: Destroyed by 2W-XKU(R) with Subdweller Laser Performance ------------- Evolutions (0) 0 Regions Visited (2) 400 Robots Destroyed (34) 170 Value Destroyed (1077) 1077 Prototype IDs (6) 120 Alien Tech Used (0) 0 Bonus (0) 0 TOTAL SCORE: 1767 Bonus ------- None Cogmind --------- Core Integrity 0/250 Matter 300/300 Energy 250/250 System Corruption 0% Temperature Cool (6) Movement Treading (160) Location -10/Subcaves Parts ------- > --- POWER (1) -------- Ion Engine > --- PROPULSION (2) --- Light Treads Light Treads > --- UTILITY (2) ------ Large Storage Unit Hardened Light Armor Plating > --- WEAPON (2) ------- Assault Rifle Assault Rifle > --- INVENTORY (15) --- Ion Engine Light Treads Improved Heat Sink Cooling System Cooling System Medium Storage Unit Hardened Light Armor Plating Hardened Light Armor Plating Subdweller Laser Subdweller Laser Subdweller Beam Cannon Subdweller Shrapnel Launcher Mining Laser Makeshift Sword Piercing Trap Peak State ------------ > --- POWER ------------ Ion Engine > --- PROPULSION ------- Light Treads Light Treads > --- UTILITY ---------- Large Storage Unit Hardened Light Armor Plating > --- WEAPON ----------- Particle Gun Assault Rifle > --- INVENTORY -------- Ion Engine Light Treads Light Treads Heat Sink Improved Heat Sink Cooling System Cooling System Medium Storage Unit Hardened Light Armor Plating Hardened Light Armor Plating Hardened Light Armor Plating Assault Rifle Assault Rifle Assault Rifle Mining Laser [Rating: 11] Favorites ----------- Power Ion Engine Engine Ion Engine Propulsion Light Treads Treads Light Treads Leg Aluminum Leg Utility Large Storage Unit Device Heat Sink Storage Large Storage Unit Protection Hardened Light Armor Plating Weapon Assault Rifle Energy Gun Particle Gun Ballistic Gun Assault Rifle Launcher Subdweller Shrapnel Launcher Special Weapon Mining Laser Build | -11 -10 -10 ------- Run | Yrd Mat Sub Slots Evolved . | . . . Power . | . . . Propulsion . | . . . Utility . | . . . Weapon . | . . . Parts Attached 18 | . 11 7 Power 1 | . 1 . Engine 1 | . 1 . Core . | . . . Reactor . | . . . Propulsion 5 | . 4 1 Treads 5 | . 4 1 Leg . | . . . Wheel . | . . . Hover . | . . . Flight . | . . . Utility 5 | . 4 1 Device 2 | . 2 . Storage 1 | . 1 . Processor . | . . . Hackware . | . . . Protection 2 | . 1 1 Artifact . | . . . Weapon 7 | . 2 5 Energy Gun 1 | . 1 . Energy Cannon . | . . . Ballistic Gun 4 | . 1 3 Ballistic Cannon . | . . . Launcher 1 | . . 1 Special Weapon 1 | . . 1 Impact Weapon . | . . . Slashing Weapon . | . . . Piercing Weapon . | . . . Special Melee Weapon . | . . . Unidentified Prototypes . | . . . Parts Lost 4 | . 1 3 Power . | . . . Propulsion 1 | . . 1 Utility 1 | . . 1 Weapon 2 | . 1 1 Highest Loss Streak 2 | . 1 2 To Critical Strikes . | . . . Average Backups 12 | 6 11 13 Power 1 | 1 1 1 Propulsion 2 | 4 2 1 Utility 5 | . 4 6 Weapon 3 | 1 3 4 Tool/Special . | . . . Unused Backups 27 | . 14 13 Power 3 | . 2 1 Propulsion 7 | . 6 1 Utility 6 | . 1 5 Weapon 10 | . 5 5 Tool/Special 1 | . . 1 Average Slot Usage (%) 99 | . 97 99 Engine 14 | . 14 14 Treads 27 | . 25 28 Device 1 | . 5 . Storage 14 | . 14 14 Protection 11 | . 6 14 Energy Gun 3 | . 11 . Ballistic Gun 20 | . 16 21 Special Weapon 4 | . . 6 Peak Build Rating 11 | 6 11 11 Average Rating 9 | 6 9 10 On Entrance 7 | 6 6 11 Naked Turns . | . . . Heaviest Build 40 | 13 35 40 Greatest Support 40 | 20 40 40 Greatest Overweight (x) . | . . . Average Overweight (x) . | . . . Largest Inventory Capacity 15 | 8 15 15 Average Capacity 14 | 8 12 15 Most Carried 15 | 7 15 15 Average Carried 13 | 6 11 13 Final Capacity 15 | 8 15 15 Final Carried 15 | 7 14 15 Class Distribution -------------------- 100% | Mutant Dominant Class ---------------- Mutant | -10/Materials Mutant | -10/Subcaves Resources | -11 -10 -10 ----------- Run | Yrd Mat Sub Matter Collected 1017 | 208 289 520 Remotely . | . . . Salvage Created 1251 | 77 610 564 Parts 76 | 3 35 38 Haulers Intercepted 2 | . 2 . Recyclers Shooed 1 | . 1 . Parts Field Recycled . | . . . Retrieved Matter . | . . . Parts Self-Destructed 10 | . . 10 Prevented . | . . . Kills | -11 -10 -10 ------- Run | Yrd Mat Sub Combat Hostiles Destroyed 29 | . 14 15 Guns 29 | . 14 15 Classes Destroyed 7 | 2 4 1 Tunneler 1 | 1 . . Hauler 2 | . 2 . Recycler 1 | 1 . . Watcher 1 | . 1 . Swarmer 3 | . 3 . Grunt 13 | . 11 2 Subdweller 13 | . . 13 Best Kill Streak 5 | 2 5 2 Combat Bots Only 5 | . 5 2 Max Kills in Single Turn 1 | 1 1 1 Gunslinging . | . . . Exploded . | . . . Melee . | . . . Uniques/NPCs Destroyed . | . . . Combat | -11 -10 -10 -------- Run | Yrd Mat Sub Hostile Shots Fired 163 | . 91 72 Missed 40 | . 21 19 Hits 123 | . 70 53 Projectile 123 | . 70 53 AOE 4 | . . 4 Critical Strikes 1 | . . 1 Damage Taken 1602 | . 627 975 Core 251 | . 100 151 Absorbed by Shields . | . . . Ignored by Resistances 445 | . 193 252 Core Remaining (%) 100 | 100 . . Volleys Fired 162 | 2 59 101 Largest 2 | 2 2 2 Hottest 120 | 40 85 120 Shots Fired 282 | 4 118 160 Gun 238 | 4 118 116 Cannon . | . . . Launcher 1 | . . 1 Special 43 | . . 43 Kinetic 210 | 4 89 117 Thermal 72 | . 29 43 Explosive . | . . . Electromagnetic . | . . . Robot Hit Streak 29 | 2 21 29 Robot Miss Streak 2 | . 2 1 Penetration Max . | . . . Secondary Targets 4 | . 3 1 Max Gunslinging Chain 1 | . 1 1 Shots Hit Robots 198 | 2 96 100 Core Hits 65 | 2 34 29 Critical Kills 1 | . 1 . Critical Parts Destroyed 1 | . . 1 Critical Strikes 5 | . 2 3 Burn 1 | . 1 . Destroy 4 | . 1 3 Melee Attacks . | . . . Impact . | . . . Slashing . | . . . Piercing . | . . . Sneak Attacks . | . . . Combat Hostiles . | . . . Follow-up Attacks . | . . . Damage Inflicted 2502 | 25 1136 1341 Guns 2476 | 25 1117 1334 Cannons . | . . . Explosions . | . . . Melee . | . . . Ramming 26 | . 19 7 Kinetic 2108 | 25 749 1334 Thermal 368 | . 368 . Explosive . | . . . Electromagnetic . | . . . Impact . | . . . Slashing . | . . . Piercing . | . . . Highest Corruption . | . . . Average Corruption . | . . . Corruption Purged . | . . . Corruption Blocked . | . . . Overload Shots . | . . . Overflow Damage . | . . . Projectiles . | . . . Explosions . | . . . Melee . | . . . Knockbacks 1 | . 1 . Impact 1 | . 1 . Kinetic . | . . . Secondary . | . . . Self-Inflicted Damage 20 | . . 20 Shots 1 | . . 1 Rammed 5 | . 4 1 Targets Rammed 6 | . 5 1 Kicked 1 | . 1 . Crushed . | . . . Highest Temperature 312 | . 312 . Average Temperature 71 | . 71 . Received Heat Transfer 639 | . 405 234 Effects 2 | . 2 . Interference 2 | . 2 . Siege Activations . | . . . Martial Activations . | . . . Shielding Activations . | . . . Robots Disrupted . | . . . Combat Hostiles . | . . . Robots Corrupted . | . . . Combat Hostiles . | . . . Parts Fried . | . . . Impact Corruptions . | . . . Robots Melted . | . . . Combat Hostiles . | . . . Parts Melted . | . . . Heat Transferred 962 | . 962 . Parts Sabotaged . | . . . Parts Stolen . | . . . Parts Stripped . | . . . Power Chain Reactions . | . . . Alert | -11 -10 -10 ------- Run | Yrd Mat Sub Maximum Alert Level 1 | . 1 . Low Security (%) 96 | 100 96 . Level 1 3 | . 3 . Level 2 . | . . . Level 3 . | . . . Level 4 . | . . . Level 5 . | . . . High Security . | . . . Max Security . | . . . Peak Influence 220 | 10 220 . Initial 5 | . 5 . Average 27 | 9 28 . Influence Increases 503 | 10 443 50 Destroy 0b10 Robot/C 320 | . 280 40 Destroy 0b10 Robot/NC 25 | 10 15 . Destroy Leader 76 | . 66 10 Successful Hack 22 | . 22 . Select Force Hacks 60 | . 60 . Influence Decreases 503 | . 453 50 Entered New Map 5 | . 5 . Time Decay 318 | . 288 30 Lost Part 30 | . 10 20 Purge Threat 150 | . 150 . Squads Dispatched 2 | . 2 . Investigation 2 | . 2 . Extermination . | . . . Reinforcement . | . . . Assault . | . . . Garrison . | . . . Intercept . | . . . Searches Triggered . | . . . Construction Impeded . | . . . Haulers Reinforced . | . . . Active Scanning Responses . | . . . Cargo Convoy Interrupts . | . . . Stealth | -11 -10 -10 --------- Run | Yrd Mat Sub Distress Signals 1 | . 1 . Communications Jammed . | . . . Distress Signals . | . . . Times Spotted 35 | . 19 16 Peak Tracking Total 5 | . 5 2 Tactical Retreats . | . . . Traps | -11 -10 -10 ------- Run | Yrd Mat Sub Traps Triggered 3 | . 1 2 Indirectly . | . . . Trap Hack Attempts . | . . . Triggered . | . . . Disarmed . | . . . Reprogrammed . | . . . Reused . | . . . Traps Extracted . | . . . Installed . | . . . Triggered . | . . . Most Traps Carried 1 | . . 1 Machines | -11 -10 -10 ---------- Run | Yrd Mat Sub Machines Disabled . | . . . Max in Single Turn . | . . . Machines Repaired . | . . . Machines Dismantled . | . . . Machines Sabotaged . | . . . Overloaded Fab Kills . | . . . Hacking | -11 -10 -10 --------- Run | Yrd Mat Sub Machines Accessed 11 | . 9 2 Terminals 7 | . 7 . Fabricators . | . . . Repair Stations . | . . . Recycling Units 2 | . 2 . Scanalyzers . | . . . Garrison Access . | . . . Total Hacks 31 | . 28 3 Successful 25 | . 22 3 Failed 6 | . 6 . Catastrophic . | . . . Database Lockouts . | . . . Manual 18 | . 18 . Terminals 26 | . 26 . Fabricators . | . . . Repair Stations . | . . . Recycling Units 2 | . 2 . Scanalyzers . | . . . Garrison Access . | . . . Terminal Hacks 15 | . 12 3 Record 1 | . . 1 Part Schematic 1 | . 1 . Robot Analysis 2 | . 2 . Prototype ID Bank 4 | . 4 . Open Door 1 | . . 1 Terminal Index 1 | . 1 . Alert Level 1 | . 1 . Unreport Threat 1 | . 1 . Transport Status 1 | . 1 . Hauler Manifests 1 | . 1 . Release Object 1 | . . 1 Fabricator Hacks . | . . . Repair Station Hacks . | . . . Recycling Unit Hacks . | . . . Scanalyzer . | . . . Garrison Access Hacks . | . . . Unauthorized Hacks 10 | . 10 . Terminals 8 | . 8 . Botnet 3 | . 3 . Skim 5 | . 5 . Fabricators . | . . . Repair Stations . | . . . Recycling Units 2 | . 2 . Tunnel 2 | . 2 . Scanalyzers . | . . . Garrison Access . | . . . Data Cores Recovered . | . . . Used . | . . . Hacking Detections 6 | . 6 . Full Trace Events . | . . . Feedback Events . | . . . Feedback Blocked . | . . . Robot Schematics Acquired . | . . . Robots Built . | . . . Authchips . | . . . Time . | . . . Total Robot Build Rating . | . . . Part Schematics Acquired 1 | . 1 . Parts Built . | . . . Authchips . | . . . Time . | . . . Total Part Build Rating . | . . . Parts Repaired . | . . . Time . | . . . Parts Recycled . | . . . Recycled Matter . | . . . Retrieved Matter . | . . . Retrieved Components . | . . . Parts Scanalyzed . | . . . Part Schematics Acquired . | . . . Parts Damaged . | . . . Bothacking | -11 -10 -10 ------------ Run | Yrd Mat Sub Used RIF Installer . | . . . Robots Hacked . | . . . Non-combat . | . . . Combat . | . . . Robot Hacks Applied . | . . . Relay Couplers Released . | . . . Fabnet Peak Effective % . | . . . Robots Rewired . | . . . Allies Hacked . | . . . Hacks Repelled . | . . . Allies | -11 -10 -10 -------- Run | Yrd Mat Sub Total Allies . | . . . Largest Group . | . . . Highest-Rated Group . | . . . Highest-Rated Ally . | . . . Total Orders . | . . . Ally Attacks . | . . . Total Damage . | . . . Kills . | . . . Allies Corrupted . | . . . Allies Melted . | . . . Intel | -11 -10 -10 ------- Run | Yrd Mat Sub Active Infowar (turns) . | . . . Robot Analysis Total 2 | . 2 . Derelict Logs Recovered . | . . . Drone Launches . | . . . Drone Recoveries . | . . . Exploration | -11 -10 -10 ------------- Run | Yrd Mat Sub Turns Passed 4096 | 17 1370 2709 Spaces Moved 2031 | 9 601 1421 Core . | . . . Treads 1956 | . 535 1421 Legs 75 | 9 66 . Wheels . | . . . Hover . | . . . Flight . | . . . Fastest Speed 120 | 120 120 160 Average Speed 158 | 120 155 160 Slowest Speed 160 | 120 160 160 Overloaded Moves . | . . . Propulsion Burnouts . | . . . Robots Hopped . | . . . Potential Cave-ins . | . . . Cave-ins Triggered . | . . . Exploration Rate (%) 56 | 3 84 82 Regions Visited 2 Branch Regions 1 Pre-discovered Areas 4 | . 3 1 Known Exits Taken 1 | . 1 . Unknown Exits Taken 1 | 1 . . Scrap Searched 13 | . . 13 Spaces Dug 20 | . . 20 Terrain Destroyed 20 | . . 20 Melee . | . . . Projectile . | . . . AOE 20 | . . 20 Terrain Rammed . | . . . Walls Destroyed . | . . . Machines Disabled . | . . . Actions | -11 -10 -10 --------- Run | Yrd Mat Sub Total 2538 | 11 928 1599 Wait 269 | . 224 45 Move 2029 | 8 600 1421 Hop . | . . . Pick Up 24 | 1 15 8 Fast Attach 2 | . 2 . Attach 4 | . 1 3 Detach 1 | . 1 . Swap 24 | . 8 16 Drop 17 | . 13 4 Fire 162 | 2 59 101 Melee . | . . . Ram . | . . . Kick 1 | . 1 . Crush 5 | . 4 1 Escape Stasis . | . . . Rewire . | . . . Trap . | . . . Miscellaneous . | . . . Route ------- -11/Scrapyard -10/Materials (discovered 6 exits: [*Mat x3] / Min x2 / *Sub) -10/Subcaves (discovered 3 exits: [*Mat x2] / [*Scr]) History --------- Turn | Location | Event 7 | -11/Scrapyard | Discovered new exit (range 3) 18 | -11/Scrapyard | Entered Materials 162 | -10/Materials | Discovered new exit (range 15) 316 | -10/Materials | Build established: Mutant 364 | -10/Materials | Discovered new exit (range 15) 813 | -10/Materials | Discovered new exit (range 8) 1040 | -10/Materials | Identified exit to Subcaves 1089 | -10/Materials | Identified exit to Mines 1130 | -10/Materials | Learned location of Recycling (-8) 1162 | -10/Materials | Learned 2 Mines zone layouts 1186 | -10/Materials | Loaded intel: 27 trap records 1201 | -10/Materials | Learned 2 Mines zone layouts 1228 | -10/Materials | Learned location of 2 exits from Materials 1316 | -10/Materials | Learned Storage security intel 1376 | -10/Materials | Learned Storage emergency access door positions 1388 | -10/Materials | Entered Subcaves 1389 | -10/Subcaves | Approached by a straggling Scientist 1408 | -10/Subcaves | A swath of the cavern ceiling suddenly collapsed 1643 | -10/Subcaves | Shifting Twisted Machinery released Sub. Monowheel 1832 | -10/Subcaves | Shifting Twisted Machinery released Battle Rifle 1832 | -10/Subcaves | Shifting Twisted Machinery released Sub. Machine Gun 1843 | -10/Subcaves | Learned location of Zion (-6) 1843 | -10/Subcaves | Met a Zionite searching for "candidates" 1850 | -10/Subcaves | Discovered new exit (range 10) 1950 | -10/Subcaves | Shifting Twisted Machinery released Sub. Laser 1954 | -10/Subcaves | Shifting Twisted Machinery released Sub. Machine Gun 2311 | -10/Subcaves | Scientist uncovered a shortcut to Scraptown 2627 | -10/Subcaves | Core integrity fell below 50% 2806 | -10/Subcaves | Discovered new exit (range 10) 3084 | -10/Subcaves | A swath of the cavern ceiling suddenly collapsed 3191 | -10/Subcaves | Core integrity fell below 20% 4097 | -10/Subcaves | Destroyed by 2W-XKU(R) with Subdweller Laser Last Messages --------------- 03591_ Ion Engine fries itself beyond repair. 03857_ Acquired 35 matter. 03867_ Acquired 11 matter. 03875_ Acquired 10 matter. 03888_ Acquired 28 matter. 03955_ Acquired 7 matter. 03961_ Acquired 13 matter. 03982_ JA-208(R) destroyed. 03985_ Acquired 12 matter. 03988_ Searching scrap... 03988_ Found Sub. Beam Cannon. 03988_ Found 47 Matter. 03990_ Searching scrap... 03990_ Found Mak. Sword. 03991_ Searching scrap... 03991_ Found Piercing Trap. 03998_ Acquired Sub. Beam Cannon. 04002_ Acquired Mak. Sword. 04004_ Acquired Piercing Trap. 04015_ Acquired Sub. Laser. Map ----- +----------------------------------------------------+ | "" #??????# ##??????# #####?# | | """ #?????####???????# #????# | | "" ####?## #??????## ### #????# | | ## ### ### ######?# ##?# ###????# # | | #" # ## ### #??## ###???## # | | " ## ##???# ##### # | | = #????# | | #????## | | #### #?????## ## ## | | " ##?# #??????# #### # | | # ### #??????# ##?# # | | # ## ########## ###??# ## | | "" ## ### #???## # | | """" "" ### ###?# ## | | " """# ### ### ## # ### > ## | | " # ###?## #?##### # | | ## "####### ###??####????###### ### | | # # ####?# #?????###### #??###?#### | | ## #### #????## #?????????### | | ## #### ##??## #####???????## | | ## ## ### #### ## ##??###??? | | ?# ### ## # #### ##?? | | ?## #?## ## ## #?? | | ??# ##?## ## # ## ## ####### ##?? | | ??###?## ######## ### #??? | | ?????## #??????# @ R ### ##?? | | ????## ##??????# # ## # # ## #?? | | ???## #???????############### ## #?? | | ??## ##??????????????????## "## ## #?? | | ### % #???????????????????#" # #" ## ## ##? | | # #???????????????????# # ?# ## ## | | # #### #???????????????????#/"# #" # ### # | | ##??# #???????????????????#%#### #?# " # | | #???# #??????????????????###?? ##?## " # | | #???# #??????????????????????? ###???### # | | #???## #?????????????????????? #???????## | | ###???###????????????????????? ??####### " # | | # #??????????????????????????? ???# " | | ## ##????????????????????????????? ?### "" """[ | | ?####????????????????????????????????# " """" | | ?????????????????????????????????????# """"" | | ?????????????????????????????????????# " " | | ?????????????????????????????????????# "" | | ?????????????????????????????????????# ### " | | ????????????????????????????????????? ??# " "" | | ???????????????????????????????????? # ??## [ | | ????????????????????????????????????? ???# " | | ?????????????????????????????????????????# ### | | ?????????????????????????????????????????# #### | | ?????????????????????????????????????????## ### | +----------------------------------------------------+ Best States ------------- Heat Dissipation 47 Energy Generation 10 Energy Capacity 250 Matter Stores 300 Matter Capacity 300 Sight Range 16 Terrain Scan Density 10 Armor Coverage 150 Resistance: KI 20 Resistance: TH 20 Resistance: EX 20 Resistance: EM 20 Resistance: I 20 Resistance: S 20 Resistance: P 20 Evasion (%) 55 Recoil Reduction 2 Offensive Hacking 10 Item Schematics ----------------- Propulsion Shielding | -10/Materials | Hacked Robot Schematics ------------------ None Fabricated ------------ Nothing Repaired ---------- Nothing Alien Tech Used ----------------- None Achievements -------------- None Challenges ------------ None Game ------ Seed AntimissileAntimissileCloak Manual? 0 Play Time 00:30:58 Cumulative 137.5 hours Start 2025.06.12 @ 16:37:15 End 2025.06.12 @ 17:13:42 Sessions 1 Manual Loads 0 Difficulty Adventurer Special Mode None Game No. 74 Rogue 54 Adventurer 17 Explorer 3 Win Type - Total 1 Types 1/0/0/0/0/0/0/0/0/0 Lore% 45 Gallery% 46 Achievement% 57 Wizard Run 0 Options --------- Layout 1 ASCII 0 Keyboard 1 Movement Numpad Keybinds 1 Fullscreen 1 Font 24/Smallcaps Map View 50x35 Zoom Use 0% Tactical HUD 1 Map Filters NONE Filters NONE Steam 1 RUN: fb593dc7-52d3-45d9-989c-d4cca1183ffc